Cogmind - Beta 16.1 *** ADVENTURER MODE // 2026.03.11 @ 11:21:58 Player: Gder Result: Destroyed by 5K-2MH(R) with Subdweller Laser Performance ------------- Evolutions (0) 0 Regions Visited (2) 400 Robots Destroyed (22) 110 Value Destroyed (319) 319 Prototype IDs (3) 60 Alien Tech Used (0) 0 Bonus (0) 0 TOTAL SCORE: 889 Bonus ------- None Cogmind --------- Core Integrity 0/250 Matter 230/300 Energy 86/125 System Corruption 0% Temperature Cool (6) Movement Treading (320) Ox2 Location -10/Subcaves Parts ------- > --- POWER (1) -------- Light Ion Engine > --- PROPULSION (2) --- Improved Treads Compact Wheel > --- UTILITY (2) ------ High-capacity Storage Unit Improved Targeting Computer > --- WEAPON (2) ------- Light Cannon Light Cannon > --- INVENTORY (20) --- Improved Treads Improved Treads Compact Wheel Cooling System Cooling System Large Storage Unit Large Matter Pod (150) Light Cannon Light Cannon Light Cannon Light Cannon Light Cannon Light Cannon Grenade Launcher Heavy Hammer Peak State ------------ > --- POWER ------------ Light Ion Engine > --- PROPULSION ------- Improved Treads Compact Wheel > --- UTILITY ---------- High-capacity Storage Unit Improved Targeting Computer > --- WEAPON ----------- Light Cannon Light Cannon > --- INVENTORY -------- Improved Treads Improved Treads Compact Wheel Cooling System Cooling System Large Storage Unit Large Matter Pod Light Cannon Light Cannon Light Cannon Light Cannon Light Cannon Light Cannon Grenade Launcher Heavy Hammer [Rating: 11] Favorites ----------- Power Ion Engine Engine Ion Engine Propulsion Wheel Treads Improved Treads Wheel Wheel Utility Seismic Detector Device Seismic Detector Storage High-capacity Storage Unit Processor Improved Targeting Computer Weapon Medium Laser Energy Gun Medium Laser Ballistic Cannon Light Cannon Special Weapon Mining Laser Build | -11 -10 -10 ------- Run | Yrd Mat Sub Slots Evolved . | . . . Power . | . . . Propulsion . | . . . Utility . | . . . Weapon . | . . . Parts Attached 16 | 7 4 5 Power 2 | 1 . 1 Engine 2 | 1 . 1 Core . | . . . Reactor . | . . . Propulsion 4 | 2 1 1 Treads 2 | 1 1 . Leg . | . . . Wheel 2 | 1 . 1 Hover . | . . . Flight . | . . . Utility 5 | 2 2 1 Device 1 | 1 . . Storage 3 | 1 2 . Processor 1 | . . 1 Hackware . | . . . Protection . | . . . Artifact . | . . . Weapon 5 | 2 1 2 Energy Gun 2 | 2 . . Energy Cannon . | . . . Ballistic Gun . | . . . Ballistic Cannon 2 | . . 2 Launcher . | . . . Special Weapon 1 | . 1 . Impact Weapon . | . . . Slashing Weapon . | . . . Piercing Weapon . | . . . Special Melee Weapon . | . . . Unidentified Prototypes . | . . . Parts Lost 5 | . . 5 Power 1 | . . 1 Propulsion 1 | . . 1 Utility 1 | . . 1 Weapon 2 | . . 2 Highest Loss Streak 5 | . . 5 To Critical Strikes . | . . . Average Backups 14 | 3 14 19 Power . | . 1 1 Propulsion 3 | 2 3 4 Utility 3 | . 3 5 Weapon 6 | . 5 9 Tool/Special . | . . . Unused Backups 18 | . 4 14 Power . | . . . Propulsion 4 | . 1 3 Utility 4 | . 1 3 Weapon 10 | . 2 8 Tool/Special . | . . . Average Slot Usage (%) 99 | . 100 98 Engine 13 | . 14 13 Treads 14 | . 14 14 Wheel 13 | . 14 13 Device 13 | . 14 13 Storage 14 | . 14 14 Energy Gun 27 | . 27 25 Peak Build Rating 11 | 7 10 11 Average Rating 8 | 5 8 9 On Entrance 5 | . 7 10 Avg Prop Armor Cover (%) 12 | 15 11 13 Naked Turns . | . . . Heaviest Build 49 | 14 49 49 Greatest Support 20 | 20 20 10 Greatest Overweight (x) 4 | 1 4 4 Average Overweight (x) 2 | . 2 4 Largest Inventory Capacity 20 | 8 20 20 Average Capacity 16 | 7 16 20 Most Carried 20 | 6 20 20 Average Carried 14 | 3 14 19 Final Capacity 20 | 8 20 20 Final Carried 20 | 6 20 15 Class Distribution -------------------- 100% | Mutant Dominant Class ---------------- Mutant | -10/Materials Mutant | -10/Subcaves Resources | -11 -10 -10 ----------- Run | Yrd Mat Sub Matter Collected 470 | 270 200 . Remotely . | . . . Salvage Created 613 | 104 451 58 Parts 46 | 8 29 9 Haulers Intercepted 1 | . 1 . Recyclers Shooed . | . . . Parts Field Recycled . | . . . Retrieved Matter . | . . . Parts Self-Destructed 9 | . . 9 Prevented . | . . . Parts Restored . | . . . Kills | -11 -10 -10 ------- Run | Yrd Mat Sub Combat Hostiles Destroyed 11 | . 7 4 Guns 11 | . 7 4 Classes Destroyed 8 | 2 6 . Worker 1 | . 1 . Builder 2 | . 2 . Tunneler 2 | 2 . . Hauler 1 | . 1 . Recycler 2 | 1 1 . Watcher 3 | . 3 . Swarmer 7 | . 3 4 Grunt 4 | . 4 . Best Kill Streak 4 | 2 4 4 Combat Bots Only 4 | . 3 4 Max Kills in Single Turn 1 | 1 1 1 Gunslinging . | . . . Exploded . | . . . Melee . | . . . Uniques/NPCs Destroyed . | . . . Combat | -11 -10 -10 -------- Run | Yrd Mat Sub Hostile Shots Fired 87 | . 21 66 Missed 22 | . 7 15 Hits 65 | . 14 51 Projectile 65 | . 14 51 AOE 3 | . . 3 Critical Strikes 3 | . 1 2 Damage Taken 893 | . 117 776 Core 254 | . 26 228 Absorbed by Shields . | . . . Ignored by Resistances 257 | . 38 219 Core Remaining (%) 100 | 100 . . Volleys Fired 57 | 3 40 14 Largest 2 | 2 2 2 Hottest 100 | 90 100 90 Shots Fired 110 | 6 76 28 Gun 96 | 6 72 18 Cannon 10 | . . 10 Launcher . | . . . Special 4 | . 4 . Kinetic 10 | . . 10 Thermal 100 | 6 76 18 Explosive . | . . . Electromagnetic . | . . . Robot Hit Streak 34 | 2 34 10 Robot Miss Streak 2 | 1 1 2 Penetration Max . | . . . Secondary Targets 4 | . 2 2 Max Gunslinging Chain 1 | . 1 1 Shots Hit Robots 83 | 4 57 22 Core Hits 34 | 4 24 6 Critical Kills . | . . . Critical Parts Destroyed . | . . . Critical Strikes 2 | . 2 . Burn 2 | . 2 . Melee Attacks . | . . . Impact . | . . . Slashing . | . . . Piercing . | . . . Sneak Attacks . | . . . Combat Hostiles . | . . . Follow-up Attacks . | . . . Damage Inflicted 1010 | 49 671 290 Guns 865 | 49 671 145 Cannons 145 | . . 145 Explosions . | . . . Melee . | . . . Ramming . | . . . Kinetic 145 | . . 145 Thermal 865 | 49 671 145 Explosive . | . . . Electromagnetic . | . . . Impact . | . . . Slashing . | . . . Piercing . | . . . Highest Corruption . | . . . Average Corruption . | . . . Corruption Purged . | . . . Corruption Blocked . | . . . Overload Shots . | . . . Overflow Damage . | . . . Projectiles . | . . . Explosions . | . . . Melee . | . . . Knockbacks 3 | . . 3 Impact . | . . . Kinetic 3 | . . 3 Secondary . | . . . Self-Inflicted Damage . | . . . Shots . | . . . Rammed . | . . . Targets Rammed . | . . . Kicked . | . . . Crushed . | . . . Highest Temperature 225 | 30 225 . Average Temperature 53 | 17 55 . Received Heat Transfer 231 | . 84 147 Siege Activations . | . . . Martial Activations . | . . . Shielding Activations . | . . . Robots Disrupted . | . . . Combat Hostiles . | . . . Robots Corrupted . | . . . Combat Hostiles . | . . . Parts Fried . | . . . Impact Corruptions . | . . . Robots Melted . | . . . Combat Hostiles . | . . . Parts Melted 4 | 1 3 . Heat Transferred 2453 | 124 1933 396 Parts Sabotaged . | . . . Parts Stolen . | . . . Parts Stripped . | . . . Power Chain Reactions . | . . . Alert | -11 -10 -10 ------- Run | Yrd Mat Sub Maximum Alert Level . | . . . Low Security (%) 100 | 100 100 . Level 1 . | . . . Level 2 . | . . . Level 3 . | . . . Level 4 . | . . . Level 5 . | . . . High Security . | . . . Max Security . | . . . Peak Influence 67 | 5 67 . Initial 2 | . 2 . Average 9 | 1 10 . Influence Increases 370 | 15 245 110 Destroy 0b10 Robot/C 220 | . 140 80 Destroy 0b10 Robot/NC 55 | 15 40 . Destroy Leader 38 | . 38 . Successful Hack 25 | . 25 . Destroy Structure 2 | . 2 . Lose Combat Pursuer 30 | . . 30 Influence Decreases 370 | 10 250 110 Entered New Map 3 | . 3 . Time Decay 317 | 10 247 60 Lost Part 50 | . . 50 Squads Dispatched . | . . . Investigation . | . . . Extermination . | . . . Reinforcement . | . . . Assault . | . . . Garrison . | . . . Intercept . | . . . Searches Triggered . | . . . Construction Impeded . | . . . Haulers Reinforced . | . . . Active Scanning Responses . | . . . Cargo Convoy Interrupts . | . . . Stealth | -11 -10 -10 --------- Run | Yrd Mat Sub Distress Signals . | . . . Communications Jammed . | . . . Distress Signals . | . . . Times Spotted 23 | . 12 11 Peak Tracking Total 6 | . 3 6 Tactical Retreats 1 | . . 1 Traps | -11 -10 -10 ------- Run | Yrd Mat Sub Traps Triggered . | . . . Indirectly . | . . . Trap Hack Attempts . | . . . Triggered . | . . . Disarmed . | . . . Reprogrammed . | . . . Reused . | . . . Traps Extracted . | . . . Installed . | . . . Triggered . | . . . Machines | -11 -10 -10 ---------- Run | Yrd Mat Sub Machines Disabled . | . . . Max in Single Turn . | . . . Machines Repaired . | . . . Machines Dismantled . | . . . Machines Sabotaged . | . . . Overloaded Fab Kills . | . . . Hacking | -11 -10 -10 --------- Run | Yrd Mat Sub Machines Accessed 8 | . 8 . Terminals 8 | . 8 . Fabricators . | . . . Repair Stations . | . . . Recycling Units . | . . . Scanalyzers . | . . . Garrison Access . | . . . Total Hacks 22 | . 22 . Successful 13 | . 13 . Failed 9 | . 9 . Catastrophic 3 | . 3 . Database Lockouts . | . . . Manual 14 | . 14 . Terminals 22 | . 22 . Fabricators . | . . . Repair Stations . | . . . Recycling Units . | . . . Scanalyzers . | . . . Garrison Access . | . . . Terminal Hacks 6 | . 6 . Prototype ID Bank 2 | . 2 . Branch Access Points 1 | . 1 . Terminal Index 1 | . 1 . Hauler Manifests 1 | . 1 . Registered Components 1 | . 1 . Fabricator Hacks . | . . . Repair Station Hacks . | . . . Recycling Unit Hacks . | . . . Scanalyzer . | . . . Garrison Access Hacks . | . . . Unauthorized Hacks 7 | . 7 . Terminals 7 | . 7 . Botnet 2 | . 2 . Skim 5 | . 5 . Fabricators . | . . . Repair Stations . | . . . Recycling Units . | . . . Scanalyzers . | . . . Garrison Access . | . . . Data Cores Recovered . | . . . Used . | . . . Hacking Detections 8 | . 8 . Full Trace Events . | . . . Feedback Events . | . . . Feedback Blocked . | . . . Robot Schematics Acquired . | . . . Robots Built . | . . . Authchips . | . . . Time . | . . . Total Robot Build Rating . | . . . Part Schematics Acquired . | . . . Parts Built . | . . . Authchips . | . . . Time . | . . . Total Part Build Rating . | . . . Part Studies Acquired . | . . . Parts Repaired . | . . . Time . | . . . Parts Recycled . | . . . Recycled Matter . | . . . Retrieved Matter . | . . . Retrieved Components . | . . . Parts Scanalyzed . | . . . Part Schematics Acquired . | . . . Parts Damaged . | . . . Bothacking | -11 -10 -10 ------------ Run | Yrd Mat Sub Used RIF Installer . | . . . Robots Hacked . | . . . Non-combat . | . . . Combat . | . . . Robot Hacks Applied . | . . . Relay Couplers Released . | . . . Fabnet Peak Effective % . | . . . Robots Rewired . | . . . Allies Hacked . | . . . Hacks Repelled . | . . . Allies | -11 -10 -10 -------- Run | Yrd Mat Sub Total Allies . | . . . Largest Group . | . . . Highest-Rated Group . | . . . Highest-Rated Ally . | . . . Total Orders . | . . . Ally Attacks . | . . . Total Damage . | . . . Kills . | . . . Allies Corrupted . | . . . Allies Melted . | . . . Intel | -11 -10 -10 ------- Run | Yrd Mat Sub Active Infowar (turns) 1263 | 9 1037 217 Seismic 1263 | 9 1037 217 Robot Analysis Total . | . . . Derelict Logs Recovered 1 | . . 1 Drone Launches . | . . . Drone Recoveries . | . . . Exploration | -11 -10 -10 ------------- Run | Yrd Mat Sub Turns Passed 1339 | 78 1037 224 Spaces Moved 856 | 58 671 127 Core 3 | 3 . . Treads 87 | 2 85 . Legs . | . . . Wheels 766 | 53 586 127 Hover . | . . . Flight . | . . . Fastest Speed 50 | 50 95 140 Average Speed 128 | 92 128 140 Slowest Speed 240 | 160 240 140 Overloaded Moves . | . . . Propulsion Burnouts . | . . . Robots Hopped . | . . . Potential Cave-ins . | . . . Cave-ins Triggered . | . . . Exploration Rate (%) 37 | 4 96 13 Regions Visited 2 Branch Regions 1 Pre-discovered Areas 1 | . 1 . Known Exits Taken 1 | . 1 . Unknown Exits Taken 1 | 1 . . Scrap Searched . | . . . Spaces Dug 2 | . 2 . Terrain Destroyed 4 | . 4 . Melee . | . . . Projectile 4 | . 4 . AOE . | . . . Terrain Rammed . | . . . Walls Destroyed . | . . . Machines Disabled . | . . . Actions | -11 -10 -10 --------- Run | Yrd Mat Sub Total 980 | 73 761 146 Wait 21 | . 21 . Move 854 | 57 670 127 Hop . | . . . Pick Up 24 | 6 18 . Fast Attach 7 | 7 . . Attach 5 | . . 5 Detach . | . . . Swap 5 | . 5 . Drop 7 | . 7 . Fire 57 | 3 40 14 Melee . | . . . Ram . | . . . Kick . | . . . Crush . | . . . Escape Stasis . | . . . Rewire . | . . . Trap . | . . . Miscellaneous . | . . . Route ------- -11/Scrapyard -10/Materials (discovered 5 exits: [*Mat x3] / *Min / *Sub) -10/Subcaves (discovered 2 exits: Mat x2) History --------- Turn | Location | Event 21 | -11/Scrapyard | Discovered new exit (range 15) 79 | -11/Scrapyard | Entered Materials 300 | -10/Materials | Build established: Mutant 317 | -10/Materials | Discovered new exit (range 7) 465 | -10/Materials | Discovered new exit (range 8) 641 | -10/Materials | Discovered new exit (range 15) 813 | -10/Materials | Identified exit to Mines 859 | -10/Materials | Discovered new exit (range 10) 937 | -10/Materials | Learned 2 Mines zone layouts 942 | -10/Materials | Identified exit to Subcaves 943 | -10/Materials | Learned location of Recycling (-7) 994 | -10/Materials | Loaded intel: 16 trap records 1116 | -10/Materials | Entered Subcaves 1117 | -10/Subcaves | Identified exit to Materials 1128 | -10/Subcaves | Learned Materials garrison access intel 1320 | -10/Subcaves | Ambushed by Subdweller buried in earth 1326 | -10/Subcaves | Core integrity fell below 50% 1338 | -10/Subcaves | Core integrity fell below 20% 1340 | -10/Subcaves | Destroyed by 5K-2MH(R) with Subdweller Laser Last Messages --------------- Data stored: Materials garrison access intel. 01187_ YY-Y97(O) collects matter. 01200_ YY-Y97(O) puts together Mak. Thermal Plating. 01209_ S-10 Pest destroyed. 01212_ Switching to secondary target: S-10 Pest. 01215_ S-10 Pest destroyed. 01215_ Switching to secondary target: S-10 Pest. 01218_ S-10 Pest destroyed. 01220_ Flight Unit fries itself beyond repair. 01320_ Sml. Laser destroyed. 01321_ 3U-WQ7(R): "ARGHSUB!" 01322_ Med. Laser destroyed. 01323_ Wheel destroyed. 01323_ Ion Engine destroyed. 01326_ B2-GAQ(u) builds Twisted Machinery. 01329_ IV-864(R) knocked back. 01331_ B2-GAQ(u) builds Twisted Machinery. 01332_ IV-864(R) knocked back. 01333_ Seismic Detector destroyed. 01335_ B2-GAQ(u) builds Twisted Machinery. Map ----- +----------------------------------------------------+ | ?????????????????????????????????????????????????? | | ?????????????????????????????????????????????????? | | ?????????????????????????????????????????????????? | | ?????????????????????????????????????????????????? | | ?????????????????????????????????????????????????? | | ?????????????????????????????????????????????????? | | ?????????????????????????????????????????????????? | | ?????????????????????????????????????????????????? | | ?????????????????????????????????????????????????? | | ?????????????????????????????????????????????????? | | ?????????????????????????????????????????????????? | | ?????????????????????????????????????????????????? | | ?????????????????????????????????????????????????? | | ?????????????????????????????????????????????????? | | ?????????????????????????????????????????????????? | | ?????????????????#????########?????? ????????????? | | ????????????????## # % ##???? ??????????? | | ??????????????""" % "" #??? ???????????? | | ??????????????""" # #"""" ##? ???????????? | | ??##?? " ??" ????###"u" # ?????????? | | ## #?? #?# ???????### %"" ?????????? | | # #?? #????????????# % RR" ???????????? | | # ### ##??????????##; R ## ???????????? | | # ???????????# ; ;##??? ????????????? | | % ##????"?????# #??????????????????? | | ##? ????# R@ ;#??????????????????? | | # ?????# """"??????????????? | | "????# # ????????????? | | % =%* % % ???;; ###? ??????????? | | % *%[[ ???#; # #????? ?????????? | | %=% #???????#; ##???????????????? | | =#????????????## % #???????????????? | | ## #?????????????; ##???????????????? | | ## #????????????#; ##????????????????? | | ##???????????##; ##????????????????? | | #####????????#;; #????????????????? | | #????????#### ### #????????????????? | | #????#####??##??# #????????????????? | | ####### ##???## #### ### #????????????????? | | ####?## ##?### ## ##????????????????? | | # ### ### ### ####????? ?????? | | ####### % % ## #???????? | | # # # # % #???????? | | ### ### #???????? | | # #?# ### ##???????????? | | ## #######?## #### ###????????????? | | ?# ##??????#########???####??????????????? | | ?# #????????????????????????????????????? | | ?# ## #???????????????????????????????????? | | ?#############???????????????????????????????????? | +----------------------------------------------------+ Best States ------------- Heat Dissipation 25 Energy Generation 10 Energy Capacity 250 Matter Stores 300 Matter Capacity 300 Sight Range 16 Terrain Scan Density 10 Resistance: KI 20 Resistance: TH 20 Resistance: EX 20 Resistance: EM 20 Resistance: I 20 Resistance: S 20 Resistance: P 20 Evasion (%) 44 Targeting Accuracy 6 Recoil Reduction 1 Offensive Hacking 10 Item Schematics ----------------- None Robot Schematics ------------------ None Fabricated ------------ Nothing Repaired ---------- Nothing Studied --------- None Alien Tech Used ----------------- None Achievements -------------- None Challenges ------------ None Game ------ Seed ImprinterSwarmDriver Manual? 0 Play Time 00:14:39 Cumulative 164.8 hours Start 2026.03.11 @ 11:07:23 End 2026.03.11 @ 11:21:58 Sessions 1 Manual Loads 0 Difficulty Adventurer Special Mode None Game No. 68 Rogue 0 Adventurer 64 Explorer 4 Win Type - Total 4 Types 4/0/0/0/0/0/0/0/0/0 Lore% 44 Gallery% 49 Achievement% 40 Wizard Run 0 Options --------- Layout 0 ASCII 0 Keyboard 1 Movement Numpad Keybinds 0 Fullscreen 2 Font 36/Smallcaps Map View 76x50 Zoom Use 0% Tactical HUD 1 Map Filters NONE Filters NONE Steam 1 RUN: 2eabe401-afd2-43f6-9868-28006c17c8e4